[Event "Early-Titled-Tuesday-Blitz-October-03-2023"]
[Site "Chess.com"]
[Date "2023.10.03"]
[Round "6"]
[White "Aradhya2000"]
[Black "igorkovalenko"]
[Result "0-1"]
[WhiteElo "2694"]
[BlackElo "2869"]
[TimeControl "180+1"]
[EndTime "9:12:08 PDT"]
[Termination "igorkovalenko won on time"]

1. d4 {[%clk 0:03:00.9]} 1... Nf6 {[%clk 0:02:59.6]} 2. Nf3 {[%clk 0:03:01.6]}
2... g6 {[%clk 0:02:59.7]} 3. g3 {[%clk 0:03:01]} 3... Bg7 {[%clk 0:03:00.6]} 4.
Bg2 {[%clk 0:03:01.5]} 4... d6 {[%clk 0:03:01]} 5. O-O {[%clk 0:03:01.7]} 5...
O-O {[%clk 0:03:01.6]} 6. Nc3 {[%clk 0:03:01.7]} 6... Nc6 {[%clk 0:03:02.1]} 7.
d5 {[%clk 0:03:01.4]} 7... Nb4 {[%clk 0:02:59.6]} 8. Nd4 {[%clk 0:02:51.1]} 8...
Bd7 {[%clk 0:02:57]} 9. h3 {[%clk 0:02:45]} 9... c5 {[%clk 0:02:56.4]} 10. dxc6
{[%clk 0:02:43.9]} 10... Nxc6 {[%clk 0:02:56.3]} 11. Be3 {[%clk 0:02:44.1]}
11... Qc8 {[%clk 0:02:53.3]} 12. Kh2 {[%clk 0:02:43.7]} 12... Rd8 {[%clk
0:02:52.9]} 13. Nxc6 {[%clk 0:02:39.2]} 13... bxc6 {[%clk 0:02:52.3]} 14. Qd2
{[%clk 0:02:38.3]} 14... Qb7 {[%clk 0:02:38.8]} 15. b3 {[%clk 0:02:37.3]} 15...
Qb4 {[%clk 0:02:38.9]} 16. Rad1 {[%clk 0:02:15.8]} 16... Rac8 {[%clk 0:02:32.8]}
17. Ne4 {[%clk 0:02:12.9]} 17... Qxd2 {[%clk 0:02:31.2]} 18. Nxf6+ {[%clk
0:02:12.8]} 18... Bxf6 {[%clk 0:02:32.1]} 19. Rxd2 {[%clk 0:02:13.2]} 19... c5
{[%clk 0:02:31.5]} 20. c4 {[%clk 0:02:12.8]} 20... a5 {[%clk 0:02:29.9]} 21. Bh6
{[%clk 0:01:21.5]} 21... Rc7 {[%clk 0:02:29.3]} 22. e4 {[%clk 0:01:19.9]} 22...
a4 {[%clk 0:02:21.1]} 23. Be3 {[%clk 0:01:19.3]} 23... Rb8 {[%clk 0:02:18.6]}
24. Rd3 {[%clk 0:01:18.4]} 24... axb3 {[%clk 0:02:04]} 25. axb3 {[%clk
0:01:19.3]} 25... Bg7 {[%clk 0:01:51.1]} 26. Rfd1 {[%clk 0:01:17.3]} 26... Bc6
{[%clk 0:01:50.5]} 27. f4 {[%clk 0:00:58.9]} 27... Rcb7 {[%clk 0:01:41.1]} 28.
Rb1 {[%clk 0:00:57.2]} 28... h5 {[%clk 0:01:19]} 29. e5 {[%clk 0:00:56]} 29...
Bxg2 {[%clk 0:01:18.6]} 30. Kxg2 {[%clk 0:00:56.4]} 30... dxe5 {[%clk
0:01:18.4]} 31. fxe5 {[%clk 0:00:54.9]} 31... Rc8 {[%clk 0:00:59.4]} 32. Rd5
{[%clk 0:00:51.9]} 32... Rbc7 {[%clk 0:00:59.3]} 33. Bf4 {[%clk 0:00:51.2]}
33... e6 {[%clk 0:00:59]} 34. Rd3 {[%clk 0:00:51.3]} 34... Rb7 {[%clk
0:00:58.9]} 35. g4 {[%clk 0:00:42.9]} 35... hxg4 {[%clk 0:00:57.3]} 36. hxg4
{[%clk 0:00:43.8]} 36... Rcb8 {[%clk 0:00:56]} 37. g5 {[%clk 0:00:39.7]} 37...
Rb4 {[%clk 0:00:54.6]} 38. Rc3 {[%clk 0:00:39.8]} 38... Rd8 {[%clk 0:00:50.5]}
39. Kf3 {[%clk 0:00:39.6]} 39... Rb7 {[%clk 0:00:48.6]} 40. Re3 {[%clk 0:00:32]}
40... Rd4 {[%clk 0:00:47.3]} 41. Rc1 {[%clk 0:00:30.2]} 41... Ra7 {[%clk
0:00:44.1]} 42. Rcc3 {[%clk 0:00:30]} 42... Ra2 {[%clk 0:00:43.6]} 43. Rcd3
{[%clk 0:00:30]} 43... Bf8 {[%clk 0:00:35.8]} 44. Rxd4 {[%clk 0:00:23.7]} 44...
cxd4 {[%clk 0:00:36.7]} 45. Rd3 {[%clk 0:00:24.3]} 45... Bc5 {[%clk 0:00:33.8]}
46. Bg3 {[%clk 0:00:24.9]} 46... Rb2 {[%clk 0:00:26.1]} 47. Bf2 {[%clk
0:00:18.2]} 47... Kf8 {[%clk 0:00:24.7]} 48. Bxd4 {[%clk 0:00:18.3]} 48... Bxd4
{[%clk 0:00:24.9]} 49. Rxd4 {[%clk 0:00:19.2]} 49... Rxb3+ {[%clk 0:00:25.8]}
50. Kf4 {[%clk 0:00:19.8]} 50... Ke7 {[%clk 0:00:26.1]} 51. Rd6 {[%clk
0:00:18.6]} 51... Rc3 {[%clk 0:00:25.4]} 52. Rc6 {[%clk 0:00:19]} 52... Kd7
{[%clk 0:00:25.6]} 53. Rc5 {[%clk 0:00:19.4]} 53... Rc1 {[%clk 0:00:24.6]} 54.
Kg4 {[%clk 0:00:18.2]} 54... Rd1 {[%clk 0:00:19.3]} 55. Kf4 {[%clk 0:00:17.3]}
55... Rf1+ {[%clk 0:00:18.4]} 56. Kg4 {[%clk 0:00:17.5]} 56... Rd1 {[%clk
0:00:18.7]} 57. Kf3 {[%clk 0:00:13.9]} 57... Rd4 {[%clk 0:00:18.3]} 58. Kg3
{[%clk 0:00:14.1]} 58... Rd3+ {[%clk 0:00:16.8]} 59. Kf4 {[%clk 0:00:14.2]}
59... Rd1 {[%clk 0:00:17]} 60. Kf3 {[%clk 0:00:12]} 60... Rf1+ {[%clk
0:00:16.8]} 61. Kg4 {[%clk 0:00:11.8]} 61... Rf5 {[%clk 0:00:17.1]} 62. Ra5
{[%clk 0:00:11.5]} 62... Kc6 {[%clk 0:00:17.3]} 63. Rb5 {[%clk 0:00:11.9]} 63...
Kc7 {[%clk 0:00:17.6]} 64. Rc5+ {[%clk 0:00:11.8]} 64... Kb7 {[%clk 0:00:17.7]}
65. Rb5+ {[%clk 0:00:12.4]} 65... Kc6 {[%clk 0:00:17.5]} 66. Ra5 {[%clk
0:00:12.8]} 66... Rf1 {[%clk 0:00:16]} 67. Kg3 {[%clk 0:00:12.7]} 67... Rc1
{[%clk 0:00:14.7]} 68. Ra7 {[%clk 0:00:12.5]} 68... Rf1 {[%clk 0:00:13.6]} 69.
Ra5 {[%clk 0:00:12]} 69... Kb6 {[%clk 0:00:13.8]} 70. Rb5+ {[%clk 0:00:12.1]}
70... Ka6 {[%clk 0:00:14]} 71. Rc5 {[%clk 0:00:12.2]} 71... Rf5 {[%clk
0:00:13.3]} 72. Kg4 {[%clk 0:00:12.1]} 72... Ka7 {[%clk 0:00:13.8]} 73. Rb5
{[%clk 0:00:10]} 73... Ka6 {[%clk 0:00:13.3]} 74. Rc5 {[%clk 0:00:10.4]} 74...
Kb6 {[%clk 0:00:13.8]} 75. Rb5+ {[%clk 0:00:10.4]} 75... Kc6 {[%clk 0:00:14.2]}
76. Ra5 {[%clk 0:00:10.9]} 76... Rf2 {[%clk 0:00:14.1]} 77. Kg3 {[%clk
0:00:08.7]} 77... Rf1 {[%clk 0:00:14.2]} 78. Kg4 {[%clk 0:00:06.9]} 78... Kd7
{[%clk 0:00:14]} 79. Kg3 {[%clk 0:00:06.9]} 79... Rf5 {[%clk 0:00:12.6]} 80. Kg4
{[%clk 0:00:06.8]} 80... Ke7 {[%clk 0:00:12.8]} 81. Ra7+ {[%clk 0:00:06.3]}
81... Ke8 {[%clk 0:00:12.5]} 82. Ra8+ {[%clk 0:00:06.5]} 82... Ke7 {[%clk
0:00:12.5]} 83. Ra7+ {[%clk 0:00:07.2]} 83... Kf8 {[%clk 0:00:12.7]} 84. Ra5
{[%clk 0:00:07.2]} 84... Rf1 {[%clk 0:00:11.8]} 85. Ra8+ {[%clk 0:00:06.1]}
85... Kg7 {[%clk 0:00:11.8]} 86. Ra5 {[%clk 0:00:06.6]} 86... Rc1 {[%clk
0:00:10.5]} 87. Rc5 {[%clk 0:00:06.8]} 87... Kf8 {[%clk 0:00:10.6]} 88. Rc8+
{[%clk 0:00:06.9]} 88... Ke7 {[%clk 0:00:10.9]} 89. Rc7+ {[%clk 0:00:07.5]}
89... Ke8 {[%clk 0:00:11.4]} 90. Rc5 {[%clk 0:00:06.7]} 90... Kd7 {[%clk
0:00:11.7]} 91. Kf4 {[%clk 0:00:06.9]} 91... Ra1 {[%clk 0:00:12]} 92. Rb5 {[%clk
0:00:06.4]} 92... Kc6 {[%clk 0:00:11.5]} 93. Rb8 {[%clk 0:00:05.2]} 93... Kc5
{[%clk 0:00:07.8]} 94. Rc8+ {[%clk 0:00:05.5]} 94... Kd4 {[%clk 0:00:08.1]} 95.
Rd8+ {[%clk 0:00:05.7]} 95... Kxc4 {[%clk 0:00:08.2]} 96. Rd7 {[%clk 0:00:06.4]}
96... Rf1+ {[%clk 0:00:08.4]} 97. Ke4 {[%clk 0:00:06.8]} 97... Rf5 {[%clk
0:00:09.3]} 98. Rc7+ {[%clk 0:00:05.7]} 98... Kb5 {[%clk 0:00:09.5]} 99. Kd4
{[%clk 0:00:06.2]} 99... Kb6 {[%clk 0:00:09.5]} 100. Re7 {[%clk 0:00:06]} 100...
Kc6 {[%clk 0:00:09.4]} 101. Ke4 {[%clk 0:00:06.5]} 101... Rf1 {[%clk 0:00:08.5]}
102. Ra7 {[%clk 0:00:06.7]} 102... Re1+ {[%clk 0:00:08.2]} 103. Kd4 {[%clk
0:00:06.8]} 103... Rd1+ {[%clk 0:00:07.8]} 104. Ke4 {[%clk 0:00:07.2]} 104...
Re1+ {[%clk 0:00:03.1]} 105. Kd4 {[%clk 0:00:07]} 105... Rf1 {[%clk 0:00:03.5]}
106. Ke4 {[%clk 0:00:06.4]} 106... Kb5 {[%clk 0:00:03.9]} 107. Rc7 {[%clk
0:00:06.2]} 107... Kb4 {[%clk 0:00:04]} 108. Kd4 {[%clk 0:00:05.7]} 108... Rf5
{[%clk 0:00:03.9]} 109. Rb7+ {[%clk 0:00:04.8]} 109... Ka4 {[%clk 0:00:03.7]}
110. Ke4 {[%clk 0:00:05.2]} 110... Ka5 {[%clk 0:00:03.7]} 111. Kd4 {[%clk
0:00:03.9]} 111... Ka6 {[%clk 0:00:04.1]} 112. Rd7 {[%clk 0:00:03.8]} 112... Kb6
{[%clk 0:00:04.4]} 113. Ke4 {[%clk 0:00:04.2]} 113... Kb5 {[%clk 0:00:04]} 114.
Rb7+ {[%clk 0:00:04.3]} 114... Kc4 {[%clk 0:00:03.3]} 115. Rc7+ {[%clk
0:00:04.7]} 115... Kb3 {[%clk 0:00:03.6]} 116. Kd4 {[%clk 0:00:03.9]} 116... Kb2
{[%clk 0:00:03.4]} 117. Ke4 {[%clk 0:00:04.3]} 117... Kb3 {[%clk 0:00:03]} 118.
Kd4 {[%clk 0:00:04.6]} 118... Ka4 {[%clk 0:00:03.1]} 119. Ke4 {[%clk 0:00:04.8]}
119... Kb5 {[%clk 0:00:04]} 120. Rd7 {[%clk 0:00:04.7]} 120... Kc6 {[%clk
0:00:04.1]} 121. Ra7 {[%clk 0:00:04.8]} 121... Rf1 {[%clk 0:00:03.8]} 122. Re7
{[%clk 0:00:04.3]} 122... Re1+ {[%clk 0:00:02.3]} 123. Kd4 {[%clk 0:00:04.4]}
123... Rf1 {[%clk 0:00:03.2]} 124. Ke4 {[%clk 0:00:04.7]} 124... Rf2 {[%clk
0:00:03.7]} 125. Kd4 {[%clk 0:00:05]} 125... Rf5 {[%clk 0:00:04]} 126. Ke4
{[%clk 0:00:05.4]} 126... Rxg5 {[%clk 0:00:03.9]} 127. Rxf7 {[%clk 0:00:05.3]}
127... Rg4+ {[%clk 0:00:03.6]} 128. Kf3 {[%clk 0:00:05.3]} 128... Rg1 {[%clk
0:00:03.3]} 129. Rf6 {[%clk 0:00:03.1]} 129... Kd5 {[%clk 0:00:03.3]} 130. Kf4
{[%clk 0:00:03.7]} 130... g5+ {[%clk 0:00:03.5]} 131. Kf3 {[%clk 0:00:03.9]}
131... Kxe5 {[%clk 0:00:04.4]} 132. Rh6 {[%clk 0:00:03.4]} 132... Kf5 {[%clk
0:00:04.4]} 133. Kf2 {[%clk 0:00:03.8]} 133... Ra1 {[%clk 0:00:03.8]} 134. Rh3
{[%clk 0:00:04.4]} 134... Ra2+ {[%clk 0:00:04]} 135. Kg1 {[%clk 0:00:04.3]}
135... Kf4 {[%clk 0:00:04.4]} 136. Rb3 {[%clk 0:00:04.7]} 136... e5 {[%clk
0:00:04.7]} 137. Rb4+ {[%clk 0:00:04.5]} 137... e4 {[%clk 0:00:05.1]} 138. Rb3
{[%clk 0:00:05]} 138... e3 {[%clk 0:00:05]} 139. Rb8 {[%clk 0:00:05]} 139... Kg3
{[%clk 0:00:05.2]} 140. Kf1 {[%clk 0:00:03.4]} 140... g4 {[%clk 0:00:05.5]} 141.
Re8 {[%clk 0:00:02.3]} 141... e2+ {[%clk 0:00:05.3]} 142. Ke1 {[%clk 0:00:02.5]}
142... Kg2 {[%clk 0:00:05.6]} 143. Rg8 {[%clk 0:00:02]} 143... Ra1+ {[%clk
0:00:05.4]} 144. Kxe2 {[%clk 0:00:02]} 144... g3 {[%clk 0:00:06.3]} 145. Rh8
{[%clk 0:00:01.7]} 145... Ra7 {[%clk 0:00:06.4]} 0-1

[Event "Early-Titled-Tuesday-Blitz-October-03-2023"]
[Site "Chess.com"]
[Date "2023.10.03"]
[Round "7"]
[White "UNSTOPPABLE_LEGEND"]
[Black "Dixit_Nikhil"]
[Result "0-1"]
[WhiteElo "2455"]
[BlackElo "2642"]
[TimeControl "180+1"]
[EndTime "9:16:01 PDT"]
[Termination "Dixit_Nikhil won by resignation"]

1. Nf3 {[%clk 0:03:00.9]} 1... Nf6 {[%clk 0:02:59.2]} 2. c4 {[%clk 0:02:59.8]}
2... g6 {[%clk 0:02:59.7]} 3. Nc3 {[%clk 0:02:59.7]} 3... Bg7 {[%clk 0:03:00.2]}
4. e4 {[%clk 0:03:00.2]} 4... d6 {[%clk 0:03:01]} 5. d4 {[%clk 0:03:00.7]} 5...
O-O {[%clk 0:03:01.7]} 6. Be2 {[%clk 0:03:01.4]} 6... e5 {[%clk 0:03:02]} 7. O-O
{[%clk 0:03:01.4]} 7... Nc6 {[%clk 0:03:02.6]} 8. d5 {[%clk 0:03:01.6]} 8... Ne7
{[%clk 0:03:03.2]} 9. Ne1 {[%clk 0:03:02.3]} 9... Nd7 {[%clk 0:03:03.9]} 10. f3
{[%clk 0:02:56.6]} 10... f5 {[%clk 0:03:04.4]} 11. Nd3 {[%clk 0:02:57]} 11... f4
{[%clk 0:03:04.2]} 12. b4 {[%clk 0:02:57.1]} 12... g5 {[%clk 0:03:04.7]} 13. c5
{[%clk 0:02:55.6]} 13... Ng6 {[%clk 0:03:04.7]} 14. c6 {[%clk 0:02:53.4]} 14...
Nf6 {[%clk 0:03:03]} 15. cxb7 {[%clk 0:02:51.3]} 15... Bxb7 {[%clk 0:03:03.2]}
16. b5 {[%clk 0:02:50.6]} 16... h5 {[%clk 0:03:02.4]} 17. a4 {[%clk 0:02:48.5]}
17... Bc8 {[%clk 0:03:02.1]} 18. Nf2 {[%clk 0:02:41.5]} 18... Rf7 {[%clk
0:02:57]} 19. Ba3 {[%clk 0:02:40.7]} 19... Bf8 {[%clk 0:02:56.7]} 20. Rc1 {[%clk
0:02:40.9]} 20... Rg7 {[%clk 0:02:56.8]} 21. a5 {[%clk 0:02:37]} 21... Nh4
{[%clk 0:02:56.8]} 22. h3 {[%clk 0:02:25.3]} 22... g4 {[%clk 0:02:51.2]} 23.
fxg4 {[%clk 0:02:24.3]} 23... hxg4 {[%clk 0:02:44.9]} 24. hxg4 {[%clk
0:02:13.6]} 24... Nh5 {[%clk 0:02:17.6]} 25. gxh5 {[%clk 0:02:00.3]} 25... Rxg2+
{[%clk 0:01:59.3]} 26. Kh1 {[%clk 0:01:59.9]} 26... Qg5 {[%clk 0:01:57.3]} 27.
Rg1 {[%clk 0:01:53.7]} 27... Qg3 {[%clk 0:01:57.3]} 28. Ng4 {[%clk 0:01:49.3]}
28... Qh3+ {[%clk 0:01:55.6]} 0-1

[Event "Early-Titled-Tuesday-Blitz-October-03-2023"]
[Site "Chess.com"]
[Date "2023.10.03"]
[Round "7"]
[White "Zq1"]
[Black "carloseduar100"]
[Result "0-1"]
[WhiteElo "2503"]
[BlackElo "2346"]
[TimeControl "180+1"]
[EndTime "9:16:06 PDT"]
[Termination "carloseduar100 won by resignation"]

1. d4 {[%clk 0:03:00.9]} 1... d5 {[%clk 0:03:00]} 2. c4 {[%clk 0:03:00.9]} 2...
e5 {[%clk 0:03:00.2]} 3. dxe5 {[%clk 0:02:59.9]} 3... d4 {[%clk 0:03:01.1]} 4.
Nf3 {[%clk 0:02:59.4]} 4... Nc6 {[%clk 0:03:01.6]} 5. a3 {[%clk 0:02:58.8]} 5...
Nge7 {[%clk 0:03:01.7]} 6. e3 {[%clk 0:02:58.6]} 6... Bg4 {[%clk 0:03:00.4]} 7.
exd4 {[%clk 0:02:54.7]} 7... Bxf3 {[%clk 0:03:00.1]} 8. Qxf3 {[%clk 0:02:53]}
8... Qxd4 {[%clk 0:03:00.8]} 9. Qe3 {[%clk 0:02:43.1]} 9... Qxe5 {[%clk
0:02:59.8]} 10. Qxe5 {[%clk 0:02:39.7]} 10... Nxe5 {[%clk 0:03:00.7]} 11. Be2
{[%clk 0:02:34.7]} 11... O-O-O {[%clk 0:03:00.7]} 12. O-O {[%clk 0:02:33.6]}
12... N7c6 {[%clk 0:02:59.3]} 13. Be3 {[%clk 0:02:31.5]} 13... Nd4 {[%clk
0:02:58.5]} 14. Bxd4 {[%clk 0:02:26]} 14... Rxd4 {[%clk 0:02:59.4]} 15. f4
{[%clk 0:02:24.3]} 15... Nxc4 {[%clk 0:02:58.9]} 16. Bxc4 {[%clk 0:02:09.3]}
16... Rxc4 {[%clk 0:02:58.8]} 17. Nc3 {[%clk 0:02:08.8]} 17... Bd6 {[%clk
0:02:59.1]} 18. g3 {[%clk 0:02:07.6]} 18... Re8 {[%clk 0:02:59.1]} 19. Rae1
{[%clk 0:02:07.2]} 19... Rxe1 {[%clk 0:02:59.3]} 20. Rxe1 {[%clk 0:02:06.1]}
20... Bxa3 {[%clk 0:02:57]} 21. bxa3 {[%clk 0:02:02.8]} 21... Rxc3 {[%clk
0:02:57.1]} 22. Re7 {[%clk 0:02:03.4]} 22... b5 {[%clk 0:02:47.7]} 23. Rxf7
{[%clk 0:02:02]} 23... Rxa3 {[%clk 0:02:48.5]} 24. Rxg7 {[%clk 0:01:54]} 24...
b4 {[%clk 0:02:48.8]} 25. Rg5 {[%clk 0:01:52]} 25... a6 {[%clk 0:02:48.3]} 26.
Rg8+ {[%clk 0:01:05.7]} 26... Kb7 {[%clk 0:02:48.1]} 27. f5 {[%clk 0:01:02.2]}
27... b3 {[%clk 0:02:47.9]} 28. Rg4 {[%clk 0:01:02.2]} 28... a5 {[%clk
0:02:47.1]} 0-1

[Event "Early-Titled-Tuesday-Blitz-October-03-2023"]
[Site "Chess.com"]
[Date "2023.10.03"]
[Round "7"]
[White "Barmen_EV"]
[Black "GianmarcoVaR"]
[Result "0-1"]
[WhiteElo "2457"]
[BlackElo "2653"]
[TimeControl "180+1"]
[EndTime "9:16:27 PDT"]
[Termination "GianmarcoVaR won by resignation"]

1. e4 {[%clk 0:03:00.9]} 1... c5 {[%clk 0:02:57.5]} 2. c3 {[%clk 0:03:01.2]}
2... Nf6 {[%clk 0:02:55.7]} 3. e5 {[%clk 0:03:01.3]} 3... Nd5 {[%clk 0:02:56]}
4. d4 {[%clk 0:03:02]} 4... d6 {[%clk 0:02:55.9]} 5. Nf3 {[%clk 0:03:02.5]} 5...
cxd4 {[%clk 0:02:55.1]} 6. cxd4 {[%clk 0:03:01.6]} 6... Nc6 {[%clk 0:02:55.2]}
7. Bc4 {[%clk 0:03:02.1]} 7... Nb6 {[%clk 0:02:55.3]} 8. Bb5 {[%clk 0:03:02.6]}
8... dxe5 {[%clk 0:02:55.7]} 9. Nxe5 {[%clk 0:03:03.5]} 9... Bd7 {[%clk
0:02:55.7]} 10. Nc3 {[%clk 0:03:03.1]} 10... Nxe5 {[%clk 0:02:55]} 11. dxe5
{[%clk 0:03:04]} 11... Bxb5 {[%clk 0:02:55.3]} 12. Nxb5 {[%clk 0:03:04.9]} 12...
Qxd1+ {[%clk 0:02:53.9]} 13. Kxd1 {[%clk 0:03:05.8]} 13... Nd5 {[%clk
0:02:54.1]} 14. Ke2 {[%clk 0:03:02.6]} 14... a6 {[%clk 0:02:24.6]} 15. Rd1
{[%clk 0:03:01.4]} 15... O-O-O {[%clk 0:02:25.3]} 16. Nd4 {[%clk 0:01:39]} 16...
e6 {[%clk 0:02:25.1]} 17. Bg5 {[%clk 0:01:32.7]} 17... Be7 {[%clk 0:02:22.5]}
18. Rac1+ {[%clk 0:01:33.3]} 18... Kb8 {[%clk 0:02:21.4]} 19. Bxe7 {[%clk
0:01:31.5]} 19... Nxe7 {[%clk 0:02:22]} 20. Nb3 {[%clk 0:01:29.1]} 20... Ng6
{[%clk 0:02:21.3]} 21. Rxd8+ {[%clk 0:01:00.7]} 21... Rxd8 {[%clk 0:02:22.2]}
22. f4 {[%clk 0:01:01.4]} 22... Nxf4+ {[%clk 0:02:18.8]} 23. Kf3 {[%clk
0:00:55.4]} 23... Nd3 {[%clk 0:02:17.3]} 24. Rc2 {[%clk 0:00:47.8]} 24... Ne1+
{[%clk 0:02:11.1]} 0-1

[Event "Early-Titled-Tuesday-Blitz-October-03-2023"]
[Site "Chess.com"]
[Date "2023.10.03"]
[Round "7"]
[White "CSB7"]
[Black "Martial2008"]
[Result "1-0"]
[WhiteElo "2746"]
[BlackElo "2604"]
[TimeControl "180+1"]
[EndTime "9:16:30 PDT"]
[Termination "CSB7 won by resignation"]

1. d4 {[%clk 0:03:00.9]} 1... Nf6 {[%clk 0:02:57.7]} 2. c4 {[%clk 0:03:00.5]}
2... e6 {[%clk 0:02:57.7]} 3. Nc3 {[%clk 0:03:00.2]} 3... Bb4 {[%clk 0:02:52.9]}
4. a3 {[%clk 0:03:00.4]} 4... Bxc3+ {[%clk 0:02:51.8]} 5. bxc3 {[%clk
0:03:01.3]} 5... O-O {[%clk 0:02:50.7]} 6. f3 {[%clk 0:03:00]} 6... c5 {[%clk
0:02:50.5]} 7. e4 {[%clk 0:02:59]} 7... b6 {[%clk 0:02:46.2]} 8. Bg5 {[%clk
0:02:47.8]} 8... d6 {[%clk 0:02:38.4]} 9. Bd3 {[%clk 0:02:47.2]} 9... e5 {[%clk
0:02:38.2]} 10. Ne2 {[%clk 0:02:46]} 10... Nc6 {[%clk 0:02:38.1]} 11. O-O {[%clk
0:02:44.4]} 11... h6 {[%clk 0:02:38.4]} 12. Bh4 {[%clk 0:02:44.1]} 12... Ba6
{[%clk 0:02:39]} 13. f4 {[%clk 0:01:32.4]} 13... exf4 {[%clk 0:02:39.1]} 14.
Nxf4 {[%clk 0:01:32.5]} 14... g5 {[%clk 0:02:39.3]} 15. Bg3 {[%clk 0:01:33.1]}
15... gxf4 {[%clk 0:02:38.3]} 16. Bh4 {[%clk 0:01:33.6]} 16... Nb8 {[%clk
0:02:20.3]} 17. Rxf4 {[%clk 0:00:46.1]} 17... Nbd7 {[%clk 0:02:19.4]} 18. Qf3
{[%clk 0:00:44.8]} 18... Kg7 {[%clk 0:02:18.4]} 19. Rf1 {[%clk 0:00:39.9]} 19...
Qe7 {[%clk 0:02:13.6]} 20. Rxf6 {[%clk 0:00:35.5]} 1-0

[Event "Early-Titled-Tuesday-Blitz-October-03-2023"]
[Site "Chess.com"]
[Date "2023.10.03"]
[Round "7"]
[White "Kopytkin"]
[Black "Boxerandchessplayer"]
[Result "1-0"]
[WhiteElo "2390"]
[BlackElo "2164"]
[TimeControl "180+1"]
[EndTime "9:16:33 PDT"]
[Termination "Kopytkin won by resignation"]

1. d4 {[%clk 0:03:00.9]} 1... e6 {[%clk 0:03:00.9]} 2. e4 {[%clk 0:03:00.1]}
2... d5 {[%clk 0:02:59.3]} 3. e5 {[%clk 0:03:00.7]} 3... c5 {[%clk 0:02:59.9]}
4. Nf3 {[%clk 0:02:59.4]} 4... Qb6 {[%clk 0:03:00.5]} 5. Bd3 {[%clk 0:02:53.7]}
5... Nc6 {[%clk 0:03:00.9]} 6. O-O {[%clk 0:02:50.4]} 6... cxd4 {[%clk
0:03:01.2]} 7. a3 {[%clk 0:02:50.4]} 7... a5 {[%clk 0:02:59.9]} 8. c3 {[%clk
0:02:34.4]} 8... Bd7 {[%clk 0:02:49]} 9. Re1 {[%clk 0:02:33.9]} 9... a4 {[%clk
0:02:35.3]} 10. Bc2 {[%clk 0:02:26.1]} 10... dxc3 {[%clk 0:02:26.6]} 11. Nxc3
{[%clk 0:02:25.8]} 11... Na5 {[%clk 0:02:08.9]} 12. Nxa4 {[%clk 0:02:21.2]}
12... Qc7 {[%clk 0:02:06.9]} 13. b3 {[%clk 0:01:54.4]} 13... Rc8 {[%clk
0:02:04.2]} 14. Bd3 {[%clk 0:01:47.3]} 14... Ne7 {[%clk 0:01:54.5]} 15. Be3
{[%clk 0:01:47.3]} 15... Ng6 {[%clk 0:01:53.3]} 16. Bb6 {[%clk 0:01:47.1]} 16...
Bxa4 {[%clk 0:01:36]} 17. Bxc7 {[%clk 0:01:44.3]} 17... Bxb3 {[%clk 0:01:25.9]}
18. Bxa5 {[%clk 0:01:39.7]} 18... Bxd1 {[%clk 0:01:24.9]} 19. Bb5+ {[%clk
0:01:39.3]} 19... Ke7 {[%clk 0:01:21.5]} 20. Rexd1 {[%clk 0:01:37.4]} 20... Nf4
{[%clk 0:01:21.4]} 21. Rac1 {[%clk 0:01:31]} 1-0

[Event "Early-Titled-Tuesday-Blitz-October-03-2023"]
[Site "Chess.com"]
[Date "2023.10.03"]
[Round "7"]
[White "zajka-molotok"]
[Black "RianKapriaga"]
[Result "1-0"]
[WhiteElo "2560"]
[BlackElo "2335"]
[TimeControl "180+1"]
[EndTime "9:16:34 PDT"]
[Termination "zajka-molotok won by resignation"]

1. g3 {[%clk 0:03:00.9]} 1... d5 {[%clk 0:02:55.2]} 2. Bg2 {[%clk 0:03:00.9]}
2... Nf6 {[%clk 0:02:55.7]} 3. f4 {[%clk 0:02:58.5]} 3... c6 {[%clk 0:02:55.3]}
4. Nf3 {[%clk 0:02:58.4]} 4... Bf5 {[%clk 0:02:52.3]} 5. d3 {[%clk 0:02:58.1]}
5... e6 {[%clk 0:02:52.1]} 6. O-O {[%clk 0:02:56.9]} 6... h6 {[%clk 0:02:52]} 7.
Nc3 {[%clk 0:02:51.3]} 7... Bc5+ {[%clk 0:02:50.5]} 8. Kh1 {[%clk 0:02:47.3]}
8... g5 {[%clk 0:02:49.9]} 9. fxg5 {[%clk 0:02:37.6]} 9... hxg5 {[%clk
0:02:49.4]} 10. Bxg5 {[%clk 0:02:38.2]} 10... Nbd7 {[%clk 0:02:49]} 11. e4
{[%clk 0:02:35.2]} 11... Bg4 {[%clk 0:02:36.9]} 12. d4 {[%clk 0:02:32.4]} 12...
Be7 {[%clk 0:02:29.6]} 13. e5 {[%clk 0:02:27.9]} 13... Ne4 {[%clk 0:02:29]} 14.
Bxe7 {[%clk 0:02:26.6]} 14... Qxe7 {[%clk 0:02:22.4]} 15. Qe1 {[%clk 0:02:21.6]}
15... Nxc3 {[%clk 0:01:54.3]} 16. bxc3 {[%clk 0:02:20.7]} 16... O-O-O {[%clk
0:01:52.9]} 17. Rb1 {[%clk 0:02:18.5]} 17... Rh7 {[%clk 0:01:46.7]} 18. Kg1
{[%clk 0:02:15]} 18... Rdh8 {[%clk 0:01:45.5]} 19. h4 {[%clk 0:02:14.3]} 19...
Bxf3 {[%clk 0:01:30]} 20. Rxf3 {[%clk 0:02:15.2]} 20... f5 {[%clk 0:01:24.9]}
21. exf6 {[%clk 0:02:11]} 21... Nxf6 {[%clk 0:01:22.6]} 22. Qe5 {[%clk
0:02:06.8]} 22... Rg7 {[%clk 0:01:16.3]} 23. Qxf6 {[%clk 0:02:05.2]} 23... Qc7
{[%clk 0:01:13.6]} 24. Qxe6+ {[%clk 0:02:02]} 24... Kb8 {[%clk 0:01:13.8]} 25.
Qe5 {[%clk 0:02:02]} 25... Rhg8 {[%clk 0:01:04]} 26. Qxc7+ {[%clk 0:02:01.1]}
26... Kxc7 {[%clk 0:01:04.1]} 27. Kh2 {[%clk 0:02:01.6]} 1-0

[Event "Early-Titled-Tuesday-Blitz-October-03-2023"]
[Site "Chess.com"]
[Date "2023.10.03"]
[Round "7"]
[White "vladoboch"]
[Black "JiiHart"]
[Result "1-0"]
[WhiteElo "2403"]
[BlackElo "2191"]
[TimeControl "180+1"]
[EndTime "9:16:57 PDT"]
[Termination "vladoboch won by checkmate"]

1. e4 {[%clk 0:02:52.5]} 1... e5 {[%clk 0:02:58.7]} 2. Nf3 {[%clk 0:02:52.1]}
2... Nf6 {[%clk 0:02:58.7]} 3. Bc4 {[%clk 0:02:52.9]} 3... Nc6 {[%clk
0:02:57.9]} 4. d3 {[%clk 0:02:52.7]} 4... Be7 {[%clk 0:02:48.4]} 5. O-O {[%clk
0:02:52.5]} 5... d6 {[%clk 0:02:42.2]} 6. a4 {[%clk 0:02:52.4]} 6... Bg4 {[%clk
0:02:39.8]} 7. h3 {[%clk 0:02:52.4]} 7... Bh5 {[%clk 0:02:28.5]} 8. c3 {[%clk
0:02:52.1]} 8... Qd7 {[%clk 0:02:17.3]} 9. Re1 {[%clk 0:02:50.5]} 9... O-O-O
{[%clk 0:02:04.3]} 10. Nbd2 {[%clk 0:02:50.7]} 10... g5 {[%clk 0:01:53.7]} 11.
Nf1 {[%clk 0:02:18.8]} 11... Bg6 {[%clk 0:01:40.8]} 12. a5 {[%clk 0:02:14.5]}
12... g4 {[%clk 0:01:36.2]} 13. hxg4 {[%clk 0:02:14.7]} 13... Nxg4 {[%clk
0:01:32.2]} 14. b4 {[%clk 0:02:12.7]} 14... f5 {[%clk 0:01:23.3]} 15. b5 {[%clk
0:02:07.3]} 15... Nb8 {[%clk 0:01:14.8]} 16. b6 {[%clk 0:02:07]} 16... cxb6
{[%clk 0:01:08.8]} 17. axb6 {[%clk 0:02:05.9]} 17... a6 {[%clk 0:01:08.9]} 18.
Qb3 {[%clk 0:02:04.5]} 18... Qe8 {[%clk 0:00:42.8]} 19. Be6+ {[%clk 0:01:44.8]}
19... Nd7 {[%clk 0:00:42.8]} 20. Qc4+ {[%clk 0:01:40.9]} 20... Kb8 {[%clk
0:00:42]} 21. Qc7+ {[%clk 0:01:41.8]} 21... Ka8 {[%clk 0:00:41.2]} 22. Rxa6+
{[%clk 0:01:42.7]} 22... bxa6 {[%clk 0:00:39.5]} 23. Bd5# {[%clk 0:01:43.6]} 1-0